[Event "*** Titled Tuesday Blitz"]
[Site "Chess.com"]
[Date "2020.10.20"]
[Round "6"]
[White "dpopadic"]
[Black "SamuelGhimpu2003"]
[Result "1-0"]
[WhiteElo "2404"]
[BlackElo "2565"]
[TimeControl "180+1"]
[EndTime "11:09:10 PDT"]
[Termination "dpopadic won by resignation"]

1. e4 {[%clk 0:03:00.9]} 1... e6 {[%clk 0:02:59.9]} 2. Nf3 {[%clk 0:02:57]} 2...
d5 {[%clk 0:03:00.8]} 3. e5 {[%clk 0:02:56.2]} 3... c5 {[%clk 0:02:56.2]} 4. b4
{[%clk 0:02:56]} 4... d4 {[%clk 0:02:54.8]} 5. a3 {[%clk 0:02:51.6]} 5... Nc6
{[%clk 0:02:49.6]} 6. c3 {[%clk 0:02:49.8]} 6... dxc3 {[%clk 0:02:45.4]} 7. dxc3
{[%clk 0:02:45.8]} 7... Qxd1+ {[%clk 0:02:46.3]} 8. Kxd1 {[%clk 0:02:45.6]} 8...
Nge7 {[%clk 0:02:47.2]} 9. Bf4 {[%clk 0:02:31.3]} 9... Ng6 {[%clk 0:02:45.6]}
10. Bg3 {[%clk 0:02:31.3]} 10... b6 {[%clk 0:02:41.3]} 11. Nbd2 {[%clk
0:02:26.3]} 11... Bb7 {[%clk 0:02:40.9]} 12. Kc2 {[%clk 0:02:25.9]} 12... O-O-O
{[%clk 0:02:40]} 13. Bd3 {[%clk 0:02:20.4]} 13... Be7 {[%clk 0:02:34.1]} 14.
Rhd1 {[%clk 0:02:18.5]} 14... Kb8 {[%clk 0:02:27.5]} 15. Be4 {[%clk 0:02:12.9]}
15... Rd7 {[%clk 0:02:20]} 16. Nc4 {[%clk 0:02:07.7]} 16... Rhd8 {[%clk
0:02:19.2]} 17. Rxd7 {[%clk 0:02:05.9]} 17... Rxd7 {[%clk 0:02:19]} 18. Bxg6
{[%clk 0:01:55.4]} 18... hxg6 {[%clk 0:02:18.1]} 19. Rd1 {[%clk 0:01:54.2]}
19... Rxd1 {[%clk 0:02:04.2]} 20. Kxd1 {[%clk 0:01:53.4]} 20... cxb4 {[%clk
0:01:57.9]} 21. cxb4 {[%clk 0:01:47.6]} 21... Ba6 {[%clk 0:01:53]} 22. Ne3
{[%clk 0:01:46.9]} 22... Kc7 {[%clk 0:01:45.2]} 23. Kd2 {[%clk 0:01:45.8]} 23...
Kd7 {[%clk 0:01:42.6]} 24. Kc3 {[%clk 0:01:45.5]} 24... Be2 {[%clk 0:01:40.7]}
25. Nd4 {[%clk 0:01:33.1]} 25... Nxd4 {[%clk 0:01:40.2]} 26. Kxd4 {[%clk
0:01:33.1]} 26... Kc6 {[%clk 0:01:40.4]} 27. Kc3 {[%clk 0:01:23.2]} 27... a5
{[%clk 0:01:33.1]} 28. f3 {[%clk 0:01:10.7]} 28... axb4+ {[%clk 0:01:27.8]} 29.
axb4 {[%clk 0:01:09.7]} 29... Kb5 {[%clk 0:01:27.5]} 30. Nc2 {[%clk 0:01:08]}
30... Bf1 {[%clk 0:01:22.3]} 31. Bf2 {[%clk 0:01:00.2]} 31... Bxg2 {[%clk
0:01:18.3]} 32. f4 {[%clk 0:00:58.2]} 32... Kc6 {[%clk 0:01:08.7]} 33. Ne3
{[%clk 0:00:50.7]} 33... b5 {[%clk 0:01:04]} 34. Nxg2 {[%clk 0:00:50]} 34... Kd5
{[%clk 0:00:58.9]} 35. Be3 {[%clk 0:00:38.3]} 35... Ke4 {[%clk 0:00:59.1]} 36.
Bc5 {[%clk 0:00:38.2]} 36... Bd8 {[%clk 0:00:59.6]} 37. Bf8 {[%clk 0:00:31.2]}
37... Kf3 {[%clk 0:00:59]} 38. Ne1+ {[%clk 0:00:30.6]} 38... Kxf4 {[%clk
0:00:58]} 39. Bxg7 {[%clk 0:00:28.3]} 39... g5 {[%clk 0:00:56.8]} 40. Nd3+
{[%clk 0:00:25.3]} 40... Kf3 {[%clk 0:00:53.6]} 41. Bf6 {[%clk 0:00:25.3]} 41...
Bxf6 {[%clk 0:00:47.6]} 42. exf6 {[%clk 0:00:25.3]} 42... Ke4 {[%clk 0:00:48.5]}
43. Nc5+ {[%clk 0:00:20.5]} 43... Kd5 {[%clk 0:00:39.6]} 44. Nd7 {[%clk
0:00:19.8]} 44... e5 {[%clk 0:00:40.1]} 45. Kd3 {[%clk 0:00:16.9]} 45... g4
{[%clk 0:00:40.4]} 46. Nc5 {[%clk 0:00:13.7]} 46... e4+ {[%clk 0:00:25.1]} 47.
Nxe4 {[%clk 0:00:12.4]} 47... Ke5 {[%clk 0:00:26]} 48. Ke3 {[%clk 0:00:12.3]}
48... Kf5 {[%clk 0:00:25.1]} 49. Nd6+ {[%clk 0:00:07.9]} 49... Kxf6 {[%clk
0:00:26]} 50. Nxb5 {[%clk 0:00:08.1]} 50... Ke5 {[%clk 0:00:26.9]} 51. Nd4
{[%clk 0:00:07.8]} 51... f5 {[%clk 0:00:27.1]} 52. Ne2 {[%clk 0:00:06.5]} 52...
Kd5 {[%clk 0:00:20.7]} 53. Kf4 {[%clk 0:00:06.5]} 1-0

[Event "*** Titled Tuesday Blitz"]
[Site "Chess.com"]
[Date "2020.10.20"]
[Round "6"]
[White "731291"]
[Black "fabianvivasz"]
[Result "1-0"]
[WhiteElo "2631"]
[BlackElo "2447"]
[TimeControl "180+1"]
[EndTime "11:09:13 PDT"]
[Termination "731291 won on time"]

1. e4 {[%clk 0:03:00.9]} 1... e5 {[%clk 0:02:58.1]} 2. Nf3 {[%clk 0:02:59.3]}
2... Nc6 {[%clk 0:02:58.1]} 3. Bb5 {[%clk 0:02:56.8]} 3... f5 {[%clk 0:02:57.3]}
4. d4 {[%clk 0:02:54.1]} 4... fxe4 {[%clk 0:02:57.1]} 5. Bxc6 {[%clk 0:02:54.1]}
5... dxc6 {[%clk 0:02:56.2]} 6. Nxe5 {[%clk 0:02:54.2]} 6... Qh4 {[%clk
0:02:49.8]} 7. Nc3 {[%clk 0:02:50]} 7... Nf6 {[%clk 0:02:45.7]} 8. Be3 {[%clk
0:02:36.8]} 8... Bd6 {[%clk 0:02:29.8]} 9. Qe2 {[%clk 0:02:31.2]} 9... Be6
{[%clk 0:01:52.3]} 10. h3 {[%clk 0:02:30.8]} 10... O-O-O {[%clk 0:01:40.1]} 11.
O-O-O {[%clk 0:01:57.4]} 11... Nd5 {[%clk 0:01:16.9]} 12. Nxd5 {[%clk
0:01:37.5]} 12... cxd5 {[%clk 0:01:17.8]} 13. f4 {[%clk 0:01:32]} 13... exf3
{[%clk 0:01:11.7]} 14. Nxf3 {[%clk 0:01:30]} 14... Qe4 {[%clk 0:01:07.1]} 15.
Rhe1 {[%clk 0:01:21.9]} 15... Rhe8 {[%clk 0:00:31.7]} 16. Qb5 {[%clk 0:00:52.8]}
16... a6 {[%clk 0:00:24.2]} 17. Qb3 {[%clk 0:00:47.3]} 17... Bg3 {[%clk
0:00:17.3]} 18. Rf1 {[%clk 0:00:21.8]} 18... h6 {[%clk 0:00:14.5]} 19. Kb1
{[%clk 0:00:19.3]} 19... g5 {[%clk 0:00:10.5]} 20. Bf2 {[%clk 0:00:19]} 20...
Bxf2 {[%clk 0:00:08.6]} 21. Rxf2 {[%clk 0:00:19.9]} 21... Bf5 {[%clk 0:00:06.4]}
22. a3 {[%clk 0:00:16.7]} 22... Qe3 {[%clk 0:00:05.8]} 23. Qxe3 {[%clk 0:00:14]}
23... Rxe3 {[%clk 0:00:06.7]} 24. Ne5 {[%clk 0:00:13.8]} 24... Be4 {[%clk
0:00:06.1]} 25. Rdd2 {[%clk 0:00:09.4]} 25... Rg3 {[%clk 0:00:05]} 26. Kc1
{[%clk 0:00:08.2]} 26... h5 {[%clk 0:00:03.6]} 27. Kd1 {[%clk 0:00:06.2]} 27...
g4 {[%clk 0:00:04]} 28. h4 {[%clk 0:00:06.5]} 28... Re3 {[%clk 0:00:02.8]} 29.
c3 {[%clk 0:00:05]} 29... g3 {[%clk 0:00:02.5]} 30. Rf7 {[%clk 0:00:04]} 30...
b6 {[%clk 0:00:01.8]} 31. Re2 {[%clk 0:00:04.3]} 31... Rxe2 {[%clk 0:00:01.5]}
32. Kxe2 {[%clk 0:00:05.2]} 32... Bxg2 {[%clk 0:00:01]} 33. Rg7 {[%clk
0:00:05.9]} 33... Be4 {[%clk 0:00:00.9]} 34. Rxg3 {[%clk 0:00:06.5]} 34... Rf8
{[%clk 0:00:01.4]} 35. Rg7 {[%clk 0:00:06.8]} 35... Rf4 {[%clk 0:00:01.4]} 36.
Nc6 {[%clk 0:00:05.3]} 36... Rg4 {[%clk 0:00:01]} 37. Rxg4 {[%clk 0:00:04.7]}
37... hxg4 {[%clk 0:00:01.1]} 38. Kf2 {[%clk 0:00:05.6]} 38... Bf3 {[%clk
0:00:00.9]} 39. Ne5 {[%clk 0:00:05.5]} 39... Kd8 {[%clk 0:00:01.4]} 40. Nxf3
{[%clk 0:00:05.4]} 40... gxf3 {[%clk 0:00:01.1]} 41. Kxf3 {[%clk 0:00:06.3]}
41... Ke7 {[%clk 0:00:00.7]} 42. Kf4 {[%clk 0:00:07.2]} 1-0

[Event "*** Titled Tuesday Blitz"]
[Site "Chess.com"]
[Date "2020.10.20"]
[Round "6"]
[White "Sacbutt"]
[Black "orestn"]
[Result "1/2-1/2"]
[WhiteElo "2280"]
[BlackElo "2422"]
[TimeControl "180+1"]
[EndTime "11:09:15 PDT"]
[Termination "Game drawn by repetition"]

1. d4 {[%clk 0:03:00.9]} 1... Nf6 {[%clk 0:02:59.1]} 2. c4 {[%clk 0:03:00.7]}
2... e6 {[%clk 0:02:59.5]} 3. Nf3 {[%clk 0:02:59.7]} 3... Bb4+ {[%clk
0:02:59.6]} 4. Bd2 {[%clk 0:02:59]} 4... Bxd2+ {[%clk 0:02:59.1]} 5. Nbxd2
{[%clk 0:02:56.6]} 5... d5 {[%clk 0:03:00]} 6. e3 {[%clk 0:02:54.3]} 6... O-O
{[%clk 0:02:59.6]} 7. cxd5 {[%clk 0:02:51.8]} 7... exd5 {[%clk 0:02:58.6]} 8.
Bd3 {[%clk 0:02:52.3]} 8... b6 {[%clk 0:02:55.2]} 9. O-O {[%clk 0:02:50.5]} 9...
Bb7 {[%clk 0:02:55.7]} 10. Rc1 {[%clk 0:02:49.8]} 10... Ne4 {[%clk 0:02:51.4]}
11. Qc2 {[%clk 0:02:45.5]} 11... c5 {[%clk 0:02:26.7]} 12. Nxe4 {[%clk
0:02:41.2]} 12... dxe4 {[%clk 0:02:27]} 13. Bxe4 {[%clk 0:02:40.8]} 13... Bxe4
{[%clk 0:02:27.8]} 14. Qxe4 {[%clk 0:02:40.9]} 14... Nd7 {[%clk 0:02:28.7]} 15.
Rfd1 {[%clk 0:02:30.5]} 15... Nf6 {[%clk 0:02:21.4]} 16. Qb7 {[%clk 0:02:27.4]}
16... cxd4 {[%clk 0:02:11.7]} 17. Rxd4 {[%clk 0:02:26.2]} 17... Qe8 {[%clk
0:02:12.2]} 18. h3 {[%clk 0:02:17.6]} 18... Qb5 {[%clk 0:02:10.2]} 19. b3 {[%clk
0:02:13.3]} 19... h6 {[%clk 0:02:09.5]} 20. Rc7 {[%clk 0:02:05.5]} 20... Qa5
{[%clk 0:02:04.7]} 21. Ra4 {[%clk 0:02:00.9]} 21... Qh5 {[%clk 0:01:52.5]} 22.
Rxa7 {[%clk 0:01:58.1]} 22... Rab8 {[%clk 0:01:47.8]} 23. Qc6 {[%clk 0:01:53.7]}
23... Qf5 {[%clk 0:01:41.3]} 24. Rcb7 {[%clk 0:01:42.2]} 24... Rbc8 {[%clk
0:01:36.3]} 25. Rc7 {[%clk 0:01:22.2]} 25... Rcd8 {[%clk 0:01:34.5]} 26. Qc2
{[%clk 0:01:19.6]} 26... Qb5 {[%clk 0:01:29.6]} 27. Nd4 {[%clk 0:01:18.8]} 27...
Qd5 {[%clk 0:01:28]} 28. Qc6 {[%clk 0:01:16.7]} 28... Qg5 {[%clk 0:01:22.5]} 29.
Qxb6 {[%clk 0:01:13.8]} 29... Nd5 {[%clk 0:01:22]} 30. Qc5 {[%clk 0:01:01.4]}
30... Nxc7 {[%clk 0:01:20.3]} 31. Qxg5 {[%clk 0:01:01.3]} 31... hxg5 {[%clk
0:01:20.5]} 32. Rxc7 {[%clk 0:01:02]} 32... Ra8 {[%clk 0:01:20.7]} 33. a4 {[%clk
0:01:00.9]} 33... Rfc8 {[%clk 0:01:18.2]} 34. Rxc8+ {[%clk 0:01:00]} 34... Rxc8
{[%clk 0:01:18.3]} 35. a5 {[%clk 0:00:59.8]} 35... Rc1+ {[%clk 0:01:16.2]} 36.
Kh2 {[%clk 0:00:59.3]} 36... Ra1 {[%clk 0:01:16.5]} 37. b4 {[%clk 0:00:59.1]}
37... Ra4 {[%clk 0:01:14.5]} 38. Nc6 {[%clk 0:00:59.1]} 38... Kf8 {[%clk
0:01:13.4]} 39. b5 {[%clk 0:00:59.3]} 39... Ke8 {[%clk 0:01:12]} 40. a6 {[%clk
0:00:56.4]} 40... Kd7 {[%clk 0:01:11.4]} 41. Nd4 {[%clk 0:00:54.4]} 41... Kc7
{[%clk 0:01:07.6]} 42. Kg3 {[%clk 0:00:54.4]} 42... f6 {[%clk 0:01:06.2]} 43. h4
{[%clk 0:00:28.5]} 43... gxh4+ {[%clk 0:01:02.9]} 44. Kxh4 {[%clk 0:00:29.4]}
44... Ra2 {[%clk 0:01:02.2]} 45. Kg3 {[%clk 0:00:27.8]} 45... Kb6 {[%clk
0:01:01]} 46. Kf3 {[%clk 0:00:27.7]} 46... g6 {[%clk 0:00:55.6]} 47. g4 {[%clk
0:00:27.7]} 47... Rb2 {[%clk 0:00:53.3]} 48. Kg3 {[%clk 0:00:27.1]} 48... Ra2
{[%clk 0:00:50]} 49. f3 {[%clk 0:00:27.4]} 49... Ra3 {[%clk 0:00:49]} 50. Kf4
{[%clk 0:00:28.1]} 50... Rc3 {[%clk 0:00:49.2]} 51. Ke4 {[%clk 0:00:27.4]} 51...
Rc1 {[%clk 0:00:46.3]} 52. Kf4 {[%clk 0:00:25]} 52... Rc3 {[%clk 0:00:45.9]} 53.
Ke4 {[%clk 0:00:21.4]} 53... Rc5 {[%clk 0:00:42.3]} 54. f4 {[%clk 0:00:21.2]}
54... Rc3 {[%clk 0:00:37.9]} 55. f5 {[%clk 0:00:18.3]} 55... g5 {[%clk
0:00:36.6]} 56. Kf3 {[%clk 0:00:14.1]} 56... Ra3 {[%clk 0:00:34.3]} 57. Ke2
{[%clk 0:00:13.1]} 57... Kc5 {[%clk 0:00:29]} 58. Kf3 {[%clk 0:00:11.3]} 58...
Kb6 {[%clk 0:00:28.4]} 59. Ke4 {[%clk 0:00:11.3]} 59... Kc5 {[%clk 0:00:27.3]}
60. Kf3 {[%clk 0:00:04.7]} 60... Kb6 {[%clk 0:00:26.2]} 1/2-1/2

[Event "*** Titled Tuesday Blitz"]
[Site "Chess.com"]
[Date "2020.10.20"]
[Round "6"]
[White "PotapovaM"]
[Black "Ze-Pequeno"]
[Result "1-0"]
[WhiteElo "2531"]
[BlackElo "2230"]
[TimeControl "180+1"]
[EndTime "11:09:23 PDT"]
[Termination "PotapovaM won on time"]

1. d4 {[%clk 0:02:59]} 1... Nf6 {[%clk 0:02:57.9]} 2. c4 {[%clk 0:02:58.1]} 2...
Nc6 {[%clk 0:02:57.6]} 3. Nf3 {[%clk 0:02:53.3]} 3... e6 {[%clk 0:02:57.4]} 4.
a3 {[%clk 0:02:53.8]} 4... d6 {[%clk 0:02:57]} 5. Nc3 {[%clk 0:02:37.2]} 5... g6
{[%clk 0:02:56.5]} 6. e4 {[%clk 0:02:36.5]} 6... Bg7 {[%clk 0:02:56]} 7. Be2
{[%clk 0:02:36.2]} 7... O-O {[%clk 0:02:55.8]} 8. O-O {[%clk 0:02:34.2]} 8...
Re8 {[%clk 0:02:55.9]} 9. h3 {[%clk 0:02:32.7]} 9... e5 {[%clk 0:02:55.5]} 10.
d5 {[%clk 0:02:32.6]} 10... Nd4 {[%clk 0:02:55.6]} 11. Re1 {[%clk 0:02:32.7]}
11... c5 {[%clk 0:02:52.6]} 12. b4 {[%clk 0:02:22.3]} 12... b6 {[%clk
0:02:48.7]} 13. Bg5 {[%clk 0:02:19.5]} 13... h6 {[%clk 0:02:46]} 14. Be3 {[%clk
0:02:19.3]} 14... Bd7 {[%clk 0:02:42.1]} 15. Rb1 {[%clk 0:02:16.8]} 15... Nh5
{[%clk 0:02:35.7]} 16. Bf1 {[%clk 0:02:15.8]} 16... Nf4 {[%clk 0:02:23]} 17. Kh2
{[%clk 0:02:15.8]} 17... f5 {[%clk 0:02:03]} 18. g3 {[%clk 0:02:10.9]} 18... Nh5
{[%clk 0:01:54.3]} 19. Nh4 {[%clk 0:02:05.3]} 19... f4 {[%clk 0:01:40.4]} 20.
Bxd4 {[%clk 0:01:57.2]} 20... fxg3+ {[%clk 0:01:38.4]} 21. fxg3 {[%clk
0:01:49.4]} 21... exd4 {[%clk 0:01:38.8]} 22. Nb5 {[%clk 0:01:40.2]} 22... Qg5
{[%clk 0:01:27.9]} 23. Rb3 {[%clk 0:01:28.5]} 23... Be5 {[%clk 0:01:24.7]} 24.
Nf3 {[%clk 0:00:33.1]} 24... Qxg3+ {[%clk 0:01:02.8]} 25. Kh1 {[%clk 0:00:33.4]}
25... Bxh3 {[%clk 0:00:24.1]} 26. Nxe5 {[%clk 0:00:28.6]} 26... Qxe5 {[%clk
0:00:20.5]} 27. Rxh3 {[%clk 0:00:27.8]} 27... Rf8 {[%clk 0:00:19.3]} 28. Bg2
{[%clk 0:00:25.9]} 28... Kg7 {[%clk 0:00:18.9]} 29. Qg4 {[%clk 0:00:23.3]} 29...
Rf7 {[%clk 0:00:16.6]} 30. Qe6 {[%clk 0:00:20.5]} 30... Qg5 {[%clk 0:00:14.7]}
31. Nxd6 {[%clk 0:00:17.6]} 31... Rf6 {[%clk 0:00:12.5]} 32. Qe7+ {[%clk
0:00:15.6]} 32... Kh8 {[%clk 0:00:12.9]} 33. Nf7+ {[%clk 0:00:13.8]} 33... Rxf7
{[%clk 0:00:11.8]} 34. Qxf7 {[%clk 0:00:14.5]} 34... Ng3+ {[%clk 0:00:09.7]} 35.
Kh2 {[%clk 0:00:12.8]} 35... Nh5 {[%clk 0:00:09.7]} 36. Qf3 {[%clk 0:00:09.7]}
36... Qe5+ {[%clk 0:00:09.4]} 37. Kh1 {[%clk 0:00:09.2]} 37... Rg8 {[%clk
0:00:09.2]} 38. Rf1 {[%clk 0:00:08.8]} 38... Rg7 {[%clk 0:00:09]} 39. Qf8+
{[%clk 0:00:08.3]} 39... Kh7 {[%clk 0:00:09.1]} 40. Qf3 {[%clk 0:00:07.9]} 40...
d3 {[%clk 0:00:08.5]} 41. Rxh5 {[%clk 0:00:06.4]} 41... gxh5 {[%clk 0:00:06.9]}
42. Qf5+ {[%clk 0:00:06.5]} 42... Qxf5 {[%clk 0:00:06.8]} 43. exf5 {[%clk
0:00:07.4]} 43... d2 {[%clk 0:00:06.6]} 44. Rd1 {[%clk 0:00:06.7]} 44... Rg3
{[%clk 0:00:06.6]} 45. Rxd2 {[%clk 0:00:06.5]} 45... Rxa3 {[%clk 0:00:07.3]} 46.
d6 {[%clk 0:00:06.1]} 46... Rd3 {[%clk 0:00:06.8]} 47. Rxd3 {[%clk 0:00:05.9]}
1-0

[Event "*** Titled Tuesday Blitz"]
[Site "Chess.com"]
[Date "2020.10.20"]
[Round "6"]
[White "SARGISMV"]
[Black "aloe_normansen"]
[Result "1-0"]
[WhiteElo "2509"]
[BlackElo "2345"]
[TimeControl "180+1"]
[EndTime "11:09:26 PDT"]
[Termination "SARGISMV won by resignation"]

1. b3 {[%clk 0:03:00.9]} 1... Nf6 {[%clk 0:02:59.3]} 2. Bb2 {[%clk 0:02:56.7]}
2... g6 {[%clk 0:02:56.6]} 3. Nf3 {[%clk 0:02:56.4]} 3... Bg7 {[%clk 0:02:55.9]}
4. g3 {[%clk 0:02:56.2]} 4... O-O {[%clk 0:02:55.3]} 5. Bg2 {[%clk 0:02:56]}
5... d6 {[%clk 0:02:54.1]} 6. O-O {[%clk 0:02:55.8]} 6... e5 {[%clk 0:02:52]} 7.
d3 {[%clk 0:02:50.7]} 7... Nc6 {[%clk 0:02:47.9]} 8. c4 {[%clk 0:02:49.1]} 8...
Nh5 {[%clk 0:02:42.7]} 9. Nc3 {[%clk 0:02:46.2]} 9... f5 {[%clk 0:02:42]} 10.
Nd5 {[%clk 0:02:44]} 10... Be6 {[%clk 0:02:35.3]} 11. e4 {[%clk 0:02:42.2]}
11... h6 {[%clk 0:02:16.9]} 12. Nh4 {[%clk 0:02:38.6]} 12... Bf7 {[%clk
0:01:04.7]} 13. exf5 {[%clk 0:02:26.5]} 13... g5 {[%clk 0:01:05]} 14. Ng6 {[%clk
0:02:18.6]} 14... Bxg6 {[%clk 0:01:05]} 15. fxg6 {[%clk 0:02:17.9]} 15... Nf6
{[%clk 0:01:04.8]} 16. Nxf6+ {[%clk 0:01:56.4]} 16... Qxf6 {[%clk 0:01:05.7]}
17. Qh5 {[%clk 0:01:56.1]} 17... Rae8 {[%clk 0:00:55.3]} 18. Rae1 {[%clk
0:01:46.8]} 18... Ne7 {[%clk 0:00:52]} 19. Bxb7 {[%clk 0:01:43.3]} 19... Nxg6
{[%clk 0:00:49]} 20. Be4 {[%clk 0:01:30.8]} 20... Ne7 {[%clk 0:00:47.6]} 21. f4
{[%clk 0:01:24.9]} 21... gxf4 {[%clk 0:00:47.3]} 22. Rxf4 {[%clk 0:01:23.7]}
22... Qe6 {[%clk 0:00:44.5]} 23. Rg4 {[%clk 0:01:12.4]} 23... Qf6 {[%clk
0:00:40.5]} 24. Rf4 {[%clk 0:01:09]} 24... Qe6 {[%clk 0:00:40.5]} 25. Rxf8+
{[%clk 0:01:08.6]} 25... Rxf8 {[%clk 0:00:41.2]} 26. Rf1 {[%clk 0:01:05.5]}
26... Rxf1+ {[%clk 0:00:40.9]} 27. Kxf1 {[%clk 0:01:06.4]} 27... Qf6+ {[%clk
0:00:40]} 28. Kg2 {[%clk 0:01:02.4]} 28... Bf8 {[%clk 0:00:32.6]} 29. Bc1 {[%clk
0:00:55.7]} 29... c6 {[%clk 0:00:31.4]} 30. Ba3 {[%clk 0:00:41.1]} 30... Qe6
{[%clk 0:00:24]} 31. Bf3 {[%clk 0:00:22.8]} 31... d5 {[%clk 0:00:21.8]} 32. Qg4+
{[%clk 0:00:22.4]} 32... Qxg4 {[%clk 0:00:21.4]} 33. Bxg4 {[%clk 0:00:23.3]}
33... Kf7 {[%clk 0:00:19.7]} 34. Bd7 {[%clk 0:00:22.2]} 34... a5 {[%clk
0:00:14.6]} 35. Bxe7 {[%clk 0:00:17.4]} 35... Bxe7 {[%clk 0:00:15.5]} 36. Bxc6
{[%clk 0:00:18]} 36... dxc4 {[%clk 0:00:15.4]} 37. dxc4 {[%clk 0:00:17.6]} 37...
Bc5 {[%clk 0:00:15.5]} 38. Kf3 {[%clk 0:00:17.7]} 38... Kf6 {[%clk 0:00:15.9]}
39. Ke4 {[%clk 0:00:17.8]} 39... Ke6 {[%clk 0:00:16.4]} 40. Bd5+ {[%clk
0:00:17.6]} 40... Kd6 {[%clk 0:00:16.4]} 41. Kf5 {[%clk 0:00:17]} 41... Ba3
{[%clk 0:00:14.9]} 42. h4 {[%clk 0:00:17.1]} 42... Bc1 {[%clk 0:00:14.9]} 43. g4
{[%clk 0:00:17.3]} 43... Kc5 {[%clk 0:00:08.9]} 44. Kxe5 {[%clk 0:00:16]} 44...
Kb4 {[%clk 0:00:09.2]} 45. Kf5 {[%clk 0:00:12.7]} 45... Be3 {[%clk 0:00:07.5]}
46. g5 {[%clk 0:00:12.4]} 46... hxg5 {[%clk 0:00:08.4]} 47. hxg5 {[%clk
0:00:13.3]} 47... Ka3 {[%clk 0:00:08.9]} 48. g6 {[%clk 0:00:11.3]} 48... Bd4
{[%clk 0:00:08]} 49. c5 {[%clk 0:00:10.6]} 49... Kxa2 {[%clk 0:00:07.6]} 50. c6
{[%clk 0:00:10.6]} 1-0

[Event "*** Titled Tuesday Blitz"]
[Site "Chess.com"]
[Date "2020.10.20"]
[Round "6"]
[White "Ermito2020"]
[Black "djano"]
[Result "1-0"]
[WhiteElo "2643"]
[BlackElo "2457"]
[TimeControl "180+1"]
[EndTime "11:09:30 PDT"]
[Termination "Ermito2020 won by resignation"]

1. e4 {[%clk 0:03:00.9]} 1... e5 {[%clk 0:02:58.8]} 2. Nf3 {[%clk 0:03:00.7]}
2... d6 {[%clk 0:02:59.2]} 3. d4 {[%clk 0:03:00.7]} 3... exd4 {[%clk 0:03:00.1]}
4. Nxd4 {[%clk 0:03:00.8]} 4... Nf6 {[%clk 0:03:00.4]} 5. Nc3 {[%clk 0:03:01.1]}
5... Be7 {[%clk 0:03:00.1]} 6. Be2 {[%clk 0:02:49.6]} 6... O-O {[%clk 0:03:00]}
7. Bf4 {[%clk 0:02:48.3]} 7... a6 {[%clk 0:02:55.7]} 8. Qd2 {[%clk 0:02:46.5]}
8... b5 {[%clk 0:02:45.4]} 9. Bf3 {[%clk 0:02:39.6]} 9... c6 {[%clk 0:02:16.9]}
10. O-O-O {[%clk 0:02:14.9]} 10... Qb6 {[%clk 0:02:06]} 11. Kb1 {[%clk
0:02:05.6]} 11... b4 {[%clk 0:01:40.4]} 12. Nce2 {[%clk 0:02:00.9]} 12... Re8
{[%clk 0:01:19.3]} 13. g4 {[%clk 0:01:47.9]} 13... d5 {[%clk 0:01:06.5]} 14.
exd5 {[%clk 0:01:41.5]} 14... Nxd5 {[%clk 0:01:04.3]} 15. Nxc6 {[%clk
0:01:36.6]} 15... Nxc6 {[%clk 0:00:48.3]} 16. Bxd5 {[%clk 0:01:35.8]} 16... Bb7
{[%clk 0:00:44.3]} 17. Ng3 {[%clk 0:01:35.6]} 17... Rad8 {[%clk 0:00:40.4]} 18.
Qe3 {[%clk 0:01:23.2]} 18... Bc5 {[%clk 0:00:38]} 19. Qf3 {[%clk 0:01:22.6]}
19... Rxd5 {[%clk 0:00:33.5]} 20. Qxd5 {[%clk 0:01:20]} 20... Nd4 {[%clk
0:00:33.3]} 21. Qd7 {[%clk 0:01:16]} 21... Rd8 {[%clk 0:00:29.1]} 22. Bc7 {[%clk
0:00:58.8]} 22... Rxd7 {[%clk 0:00:27.9]} 23. Bxb6 {[%clk 0:00:58.8]} 23... Bxb6
{[%clk 0:00:27.6]} 24. Rhe1 {[%clk 0:00:58.9]} 24... Rd8 {[%clk 0:00:23.3]} 25.
c3 {[%clk 0:00:58.8]} 25... bxc3 {[%clk 0:00:22.8]} 26. bxc3 {[%clk 0:00:59.7]}
26... Ne6 {[%clk 0:00:23.2]} 27. Rxd8+ {[%clk 0:00:58.9]} 27... Bxd8 {[%clk
0:00:22.9]} 28. Nf5 {[%clk 0:00:58.4]} 28... Kf8 {[%clk 0:00:22.5]} 29. Kb2
{[%clk 0:00:56.3]} 29... g6 {[%clk 0:00:22.7]} 30. Nd6 {[%clk 0:00:56.4]} 30...
Bf3 {[%clk 0:00:18.8]} 31. h3 {[%clk 0:00:56.5]} 31... Be7 {[%clk 0:00:18]} 32.
Nc4 {[%clk 0:00:55.6]} 32... Nc5 {[%clk 0:00:16.1]} 33. Ne5 {[%clk 0:00:55.1]}
33... f6 {[%clk 0:00:14]} 34. Nxf3 {[%clk 0:00:54.5]} 34... Nd3+ {[%clk
0:00:14.5]} 35. Kc2 {[%clk 0:00:55.1]} 35... Nxe1+ {[%clk 0:00:15.4]} 36. Nxe1
{[%clk 0:00:55.5]} 36... Kf7 {[%clk 0:00:15.8]} 37. Nd3 {[%clk 0:00:55.8]} 37...
Ke6 {[%clk 0:00:16.3]} 38. c4 {[%clk 0:00:56.3]} 38... f5 {[%clk 0:00:14.6]} 39.
gxf5+ {[%clk 0:00:55.5]} 39... Kxf5 {[%clk 0:00:15.5]} 40. Kc3 {[%clk
0:00:54.2]} 40... Ke4 {[%clk 0:00:15.7]} 41. Nb4 {[%clk 0:00:48]} 41... a5
{[%clk 0:00:14.3]} 42. Nc6 {[%clk 0:00:48]} 42... Bf6+ {[%clk 0:00:10.2]} 43.
Kd2 {[%clk 0:00:45.3]} 43... Kf3 {[%clk 0:00:09.7]} 44. Nxa5 {[%clk 0:00:41.6]}
44... Kxf2 {[%clk 0:00:09.7]} 45. c5 {[%clk 0:00:42.1]} 45... g5 {[%clk
0:00:09.2]} 46. c6 {[%clk 0:00:42.4]} 46... Bd8 {[%clk 0:00:07.1]} 47. Nb7
{[%clk 0:00:41.1]} 47... Bc7 {[%clk 0:00:06.8]} 48. Nc5 {[%clk 0:00:41.3]} 48...
h5 {[%clk 0:00:06.4]} 49. Ne6 {[%clk 0:00:41.5]} 49... Ba5+ {[%clk 0:00:06]} 50.
Kd3 {[%clk 0:00:41.6]} 50... g4 {[%clk 0:00:06.8]} 51. hxg4 {[%clk 0:00:36.5]}
51... hxg4 {[%clk 0:00:07.2]} 52. Ng5 {[%clk 0:00:19.7]} 52... g3 {[%clk
0:00:06.7]} 53. Ne4+ {[%clk 0:00:19.9]} 53... Kf3 {[%clk 0:00:06.1]} 54. Nxg3
{[%clk 0:00:19.5]} 54... Kxg3 {[%clk 0:00:07]} 55. Kc4 {[%clk 0:00:19.5]} 55...
Kf4 {[%clk 0:00:07]} 56. Kb5 {[%clk 0:00:20.2]} 56... Bc7 {[%clk 0:00:06.4]} 57.
a4 {[%clk 0:00:20.9]} 57... Ke5 {[%clk 0:00:06.7]} 58. a5 {[%clk 0:00:21.5]}
58... Kd5 {[%clk 0:00:05.6]} 59. a6 {[%clk 0:00:21.5]} 59... Bb8 {[%clk
0:00:05.8]} 60. a7 {[%clk 0:00:21.6]} 60... Bxa7 {[%clk 0:00:04.8]} 61. c7
{[%clk 0:00:22.2]} 1-0